[Event "Late-Titled-Tuesday-Blitz-August-29-2023"]
[Site "Chess.com"]
[Date "2023.08.29"]
[Round "2"]
[White "schachlana"]
[Black "simplerXiao"]
[Result "0-1"]
[WhiteElo "2276"]
[BlackElo "2491"]
[TimeControl "180+1"]
[EndTime "14:18:49 PDT"]
[Termination "simplerXiao won by resignation"]

1. d4 {[%clk 0:02:49.9]} 1... d5 {[%clk 0:02:58.2]} 2. Nf3 {[%clk 0:02:48.8]}
2... Nf6 {[%clk 0:02:57.9]} 3. g3 {[%clk 0:02:48.5]} 3... c5 {[%clk 0:02:57.6]}
4. Bg2 {[%clk 0:02:48.6]} 4... Nc6 {[%clk 0:02:58.2]} 5. O-O {[%clk 0:02:48.9]}
5... cxd4 {[%clk 0:02:58.3]} 6. Nxd4 {[%clk 0:02:48.9]} 6... e5 {[%clk
0:02:59.1]} 7. Nxc6 {[%clk 0:02:49.2]} 7... bxc6 {[%clk 0:02:59.6]} 8. c4 {[%clk
0:02:49.7]} 8... Be6 {[%clk 0:03:00.1]} 9. cxd5 {[%clk 0:02:46.8]} 9... cxd5
{[%clk 0:03:01]} 10. Qa4+ {[%clk 0:02:47.2]} 10... Qd7 {[%clk 0:03:00.7]} 11.
Nc3 {[%clk 0:02:45.9]} 11... Qxa4 {[%clk 0:02:59]} 12. Nxa4 {[%clk 0:02:46.8]}
12... Be7 {[%clk 0:02:57.2]} 13. b3 {[%clk 0:02:43.8]} 13... O-O {[%clk
0:02:56.2]} 14. Bb2 {[%clk 0:02:44.1]} 14... e4 {[%clk 0:02:53.6]} 15. Rac1
{[%clk 0:02:42.7]} 15... Rac8 {[%clk 0:02:53.5]} 16. Rfd1 {[%clk 0:02:42.5]}
16... Rfd8 {[%clk 0:02:49.7]} 17. e3 {[%clk 0:02:42]} 17... Kf8 {[%clk
0:02:44.8]} 18. h3 {[%clk 0:02:42.4]} 18... Ke8 {[%clk 0:02:42.8]} 19. Bf1
{[%clk 0:02:41.5]} 19... Rxc1 {[%clk 0:02:36.1]} 20. Rxc1 {[%clk 0:02:41.3]}
20... Rc8 {[%clk 0:02:35.1]} 21. Bb5+ {[%clk 0:02:40.7]} 21... Kd8 {[%clk
0:02:33.9]} 22. Kg2 {[%clk 0:02:32.6]} 22... Rxc1 {[%clk 0:02:30.6]} 23. Bxc1
{[%clk 0:02:33.5]} 23... Nd7 {[%clk 0:02:23.8]} 24. Bb2 {[%clk 0:02:31.3]} 24...
Bf6 {[%clk 0:02:22.2]} 25. Ba3 {[%clk 0:02:22.5]} 25... Be5 {[%clk 0:02:16.9]}
26. Nc5 {[%clk 0:02:09.6]} 26... Nxc5 {[%clk 0:02:15.9]} 27. Bxc5 {[%clk
0:02:10.5]} 27... a5 {[%clk 0:02:11.7]} 28. h4 {[%clk 0:02:01.4]} 28... Bc3
{[%clk 0:02:09.9]} 29. Bb6+ {[%clk 0:01:47.7]} 29... Ke7 {[%clk 0:02:08.2]} 30.
Bd4 {[%clk 0:01:45.2]} 30... Bxd4 {[%clk 0:02:02.3]} 31. exd4 {[%clk 0:01:46.1]}
31... Bg4 {[%clk 0:01:56.6]} 32. Kf1 {[%clk 0:01:43.2]} 32... Kd6 {[%clk
0:01:47.5]} 33. Ke1 {[%clk 0:01:42.9]} 33... f6 {[%clk 0:01:47.1]} 34. Kd2
{[%clk 0:01:43]} 34... g5 {[%clk 0:01:40.5]} 35. a3 {[%clk 0:01:29]} 35... h6
{[%clk 0:01:38.8]} 36. Kc3 {[%clk 0:01:19.7]} 36... f5 {[%clk 0:01:37]} 37. b4
{[%clk 0:01:13.7]} 37... axb4+ {[%clk 0:01:36]} 38. axb4 {[%clk 0:01:14.6]}
38... f4 {[%clk 0:01:34.9]} 39. Kd2 {[%clk 0:01:11.7]} 39... Bd7 {[%clk
0:01:22.5]} 40. Ba6 {[%clk 0:00:52.2]} 40... Ba4 {[%clk 0:01:17.1]} 41. hxg5
{[%clk 0:00:48.9]} 41... hxg5 {[%clk 0:01:16.3]} 42. gxf4 {[%clk 0:00:48.7]}
42... gxf4 {[%clk 0:01:16.5]} 43. Bb7 {[%clk 0:00:46]} 43... Bb3 {[%clk
0:01:15.6]} 44. Ke2 {[%clk 0:00:38.2]} 44... Bc4+ {[%clk 0:01:14.8]} 45. Kd2
{[%clk 0:00:37.7]} 45... Kc7 {[%clk 0:01:15.3]} 46. Ba8 {[%clk 0:00:33.5]} 46...
Kd6 {[%clk 0:01:11.4]} 47. Bb7 {[%clk 0:00:30.3]} 47... Bb5 {[%clk 0:01:11.3]}
48. Bc8 {[%clk 0:00:29.7]} 48... Kc7 {[%clk 0:01:07.9]} 49. Be6 {[%clk
0:00:25.5]} 49... Kc6 {[%clk 0:01:07.9]} 50. Bf7 {[%clk 0:00:17.3]} 50... Bc4
{[%clk 0:01:07.6]} 51. Be8+ {[%clk 0:00:16.8]} 51... Kb6 {[%clk 0:01:07.8]} 52.
Bd7 {[%clk 0:00:16.4]} 52... Bb5 {[%clk 0:01:06.2]} 53. Be6 {[%clk 0:00:16.3]}
53... Bc6 {[%clk 0:01:06]} 54. Kc3 {[%clk 0:00:14.2]} 54... Kb5 {[%clk 0:01:06]}
55. Bf7 {[%clk 0:00:14.1]} 55... Ka4 {[%clk 0:01:03.7]} 56. Be6 {[%clk
0:00:13.4]} 56... Bb7 {[%clk 0:01:02.9]} 57. Bf7 {[%clk 0:00:13.4]} 57... Ka3
{[%clk 0:01:01.2]} 58. Be6 {[%clk 0:00:13.4]} 58... Ka2 {[%clk 0:01:00.7]} 59.
b5 {[%clk 0:00:13.1]} 59... Ka3 {[%clk 0:01:00.6]} 60. b6 {[%clk 0:00:13.7]}
60... Ka4 {[%clk 0:00:59.9]} 61. Bf7 {[%clk 0:00:09.5]} 61... Kb5 {[%clk
0:00:59.4]} 62. Be6 {[%clk 0:00:10.1]} 62... Kxb6 {[%clk 0:00:57.6]} 63. Kb4
{[%clk 0:00:09.5]} 63... Kc6 {[%clk 0:00:58.2]} 64. Bg4 {[%clk 0:00:09.5]} 64...
Ba6 {[%clk 0:00:56.1]} 65. Kc3 {[%clk 0:00:09.3]} 65... Bf1 {[%clk 0:00:50.9]}
66. Bh5 {[%clk 0:00:08.4]} 66... Bg2 {[%clk 0:00:50.1]} 67. Bd1 {[%clk
0:00:07.8]} 67... e3 {[%clk 0:00:41.1]} 68. fxe3 {[%clk 0:00:08.7]} 68... f3
{[%clk 0:00:41.2]} 69. Ba4+ {[%clk 0:00:05]} 69... Kd6 {[%clk 0:00:40.3]} 70.
Kd2 {[%clk 0:00:04.8]} 70... f2 {[%clk 0:00:39]} 0-1

[Event "Late-Titled-Tuesday-Blitz-August-29-2023"]
[Site "Chess.com"]
[Date "2023.08.29"]
[Round "2"]
[White "Piotrek1979"]
[Black "rochaaaaaaaaaa"]
[Result "1-0"]
[WhiteElo "2464"]
[BlackElo "2227"]
[TimeControl "180+1"]
[EndTime "14:18:49 PDT"]
[Termination "Piotrek1979 won by resignation"]

1. Nf3 {[%clk 0:03:00.9]} 1... d5 {[%clk 0:02:59.8]} 2. g3 {[%clk 0:02:58.4]}
2... Nd7 {[%clk 0:02:58.3]} 3. Bg2 {[%clk 0:02:59.3]} 3... e5 {[%clk 0:02:58.3]}
4. d3 {[%clk 0:02:58.4]} 4... Ngf6 {[%clk 0:02:56.9]} 5. O-O {[%clk 0:02:57.4]}
5... Bd6 {[%clk 0:02:56.2]} 6. c4 {[%clk 0:02:52.8]} 6... c6 {[%clk 0:02:56]} 7.
cxd5 {[%clk 0:02:42.8]} 7... cxd5 {[%clk 0:02:55.7]} 8. Nc3 {[%clk 0:02:42.9]}
8... O-O {[%clk 0:02:52.2]} 9. b3 {[%clk 0:02:23.4]} 9... Re8 {[%clk 0:02:44.8]}
10. Nb5 {[%clk 0:02:15.6]} 10... Bf8 {[%clk 0:02:41.2]} 11. Qc2 {[%clk
0:02:14.1]} 11... Re7 {[%clk 0:02:28]} 12. Qc7 {[%clk 0:02:04.6]} 12... Re8
{[%clk 0:02:09.8]} 13. Qxd8 {[%clk 0:01:48.1]} 13... Rxd8 {[%clk 0:02:09.8]} 14.
Bb2 {[%clk 0:01:47.7]} 14... e4 {[%clk 0:02:01.1]} 15. Ne5 {[%clk 0:01:35.9]}
15... Nxe5 {[%clk 0:01:51.4]} 16. Bxe5 {[%clk 0:01:36.8]} 16... Bf5 {[%clk
0:01:48.5]} 17. Bxf6 {[%clk 0:01:16.4]} 17... gxf6 {[%clk 0:01:48.5]} 18. Nc7
{[%clk 0:01:16.5]} 18... Rac8 {[%clk 0:01:46.6]} 19. Nxd5 {[%clk 0:01:17]} 19...
Rxd5 {[%clk 0:01:44.2]} 20. dxe4 {[%clk 0:01:17.4]} 20... Rd2 {[%clk 0:01:41.2]}
21. exf5 {[%clk 0:01:15.5]} 21... b6 {[%clk 0:01:41.1]} 22. Bf3 {[%clk
0:01:11.7]} 22... Rcc2 {[%clk 0:01:33.7]} 23. a4 {[%clk 0:01:11.3]} 23... Rb2
{[%clk 0:01:23.6]} 24. Rab1 {[%clk 0:01:09.3]} 24... Bb4 {[%clk 0:01:17.1]} 25.
Rfc1 {[%clk 0:01:00]} 25... Kg7 {[%clk 0:01:16.7]} 26. Kf1 {[%clk 0:00:55.8]}
26... Bc5 {[%clk 0:01:07.4]} 27. Rxb2 {[%clk 0:00:55.3]} 27... Rxb2 {[%clk
0:01:07.2]} 28. Bd5 {[%clk 0:00:55.7]} 28... Rd2 {[%clk 0:01:04]} 29. Bc4 {[%clk
0:00:55.1]} 29... a5 {[%clk 0:01:03.5]} 30. h4 {[%clk 0:00:54.6]} 30... Kf8
{[%clk 0:00:49.7]} 31. Rc3 {[%clk 0:00:54]} 31... Ke7 {[%clk 0:00:47]} 32. Kg2
{[%clk 0:00:51.4]} 32... Bd4 {[%clk 0:00:42.9]} 33. Rf3 {[%clk 0:00:50.5]} 33...
Be5 {[%clk 0:00:38.8]} 34. Re3 {[%clk 0:00:50.2]} 34... Kf8 {[%clk 0:00:38.5]}
35. f4 {[%clk 0:00:48.2]} 35... Bd6 {[%clk 0:00:37.5]} 36. Re4 {[%clk
0:00:44.4]} 36... Rd1 {[%clk 0:00:37.3]} 37. Kf3 {[%clk 0:00:44.1]} 37... Rf1+
{[%clk 0:00:36.7]} 38. Kg4 {[%clk 0:00:43.7]} 38... Rg1 {[%clk 0:00:33.6]} 39.
Re3 {[%clk 0:00:42.9]} 39... Bc5 {[%clk 0:00:33.4]} 40. Rf3 {[%clk 0:00:41]}
40... Kg7 {[%clk 0:00:32.8]} 41. Kh5 {[%clk 0:00:40.7]} 41... Rd1 {[%clk
0:00:26.1]} 42. g4 {[%clk 0:00:40.5]} 42... h6 {[%clk 0:00:25.6]} 43. g5 {[%clk
0:00:33.9]} 43... fxg5 {[%clk 0:00:25.5]} 44. fxg5 {[%clk 0:00:34.8]} 44... hxg5
{[%clk 0:00:25.2]} 45. hxg5 {[%clk 0:00:34.8]} 45... Rh1+ {[%clk 0:00:24.6]} 46.
Kg4 {[%clk 0:00:34.7]} 46... f6 {[%clk 0:00:22]} 47. gxf6+ {[%clk 0:00:32.2]}
47... Kxf6 {[%clk 0:00:22.1]} 48. Kf4 {[%clk 0:00:33.1]} 48... Bd6+ {[%clk
0:00:20.3]} 49. Ke4 {[%clk 0:00:33.3]} 49... Be5 {[%clk 0:00:19.3]} 50. Kd5
{[%clk 0:00:33.4]} 50... Rd1+ {[%clk 0:00:19.2]} 51. Kc6 {[%clk 0:00:33.1]}
51... Bd4 {[%clk 0:00:19.7]} 52. Be6 {[%clk 0:00:30]} 52... Bc5 {[%clk
0:00:19.8]} 53. e4 {[%clk 0:00:29]} 53... Rc1 {[%clk 0:00:18.8]} 54. Bc4 {[%clk
0:00:28]} 54... Rd1 {[%clk 0:00:18.6]} 55. Bd5 {[%clk 0:00:27.2]} 55... Rc1
{[%clk 0:00:18.8]} 56. Kd7 {[%clk 0:00:27.8]} 56... Rd1 {[%clk 0:00:19]} 57. Rg3
{[%clk 0:00:28.1]} 57... Ke5 {[%clk 0:00:14.9]} 58. Rg6 {[%clk 0:00:28.7]} 58...
Rf1 {[%clk 0:00:14.7]} 59. Re6+ {[%clk 0:00:28.6]} 59... Kd4 {[%clk 0:00:15.2]}
60. f6 {[%clk 0:00:28.4]} 60... Kc3 {[%clk 0:00:14.8]} 61. Ke8 {[%clk
0:00:28.2]} 61... Bd4 {[%clk 0:00:14.7]} 62. f7 {[%clk 0:00:27.9]} 62... Bc5
{[%clk 0:00:15.3]} 63. Rc6 {[%clk 0:00:27.5]} 63... Kd4 {[%clk 0:00:15.5]} 64.
Rxc5 {[%clk 0:00:27.6]} 64... bxc5 {[%clk 0:00:15.7]} 65. f8=Q {[%clk
0:00:28.2]} 65... Rxf8+ {[%clk 0:00:15.8]} 66. Kxf8 {[%clk 0:00:28.2]} 1-0

[Event "Late-Titled-Tuesday-Blitz-August-29-2023"]
[Site "Chess.com"]
[Date "2023.08.29"]
[Round "2"]
[White "RIPOL"]
[Black "enriquetejedor"]
[Result "0-1"]
[WhiteElo "2413"]
[BlackElo "2691"]
[TimeControl "180+1"]
[EndTime "14:18:50 PDT"]
[Termination "enriquetejedor won by resignation"]

1. d4 {[%clk 0:02:59.6]} 1... Nf6 {[%clk 0:02:55.7]} 2. c4 {[%clk 0:02:59.2]}
2... b6 {[%clk 0:02:50.1]} 3. Nc3 {[%clk 0:02:56.6]} 3... Bb7 {[%clk 0:02:49.1]}
4. f3 {[%clk 0:02:55.6]} 4... e6 {[%clk 0:00:30.4]} 5. e4 {[%clk 0:02:49.2]}
5... d6 {[%clk 0:00:27]} 6. Be3 {[%clk 0:02:42.2]} 6... Nbd7 {[%clk 0:00:27.5]}
7. Nh3 {[%clk 0:02:40.7]} 7... g6 {[%clk 0:00:27.8]} 8. Nf2 {[%clk 0:02:39.6]}
8... Bg7 {[%clk 0:00:28.1]} 9. Be2 {[%clk 0:02:39.7]} 9... O-O {[%clk
0:00:28.3]} 10. O-O {[%clk 0:02:40.2]} 10... e5 {[%clk 0:00:29]} 11. d5 {[%clk
0:02:38.6]} 11... a5 {[%clk 0:00:29.6]} 12. a3 {[%clk 0:02:37.8]} 12... Nh5
{[%clk 0:00:29.7]} 13. b4 {[%clk 0:02:29.3]} 13... f5 {[%clk 0:00:27.5]} 14. Nd3
{[%clk 0:02:28.5]} 14... f4 {[%clk 0:00:26.1]} 15. Bf2 {[%clk 0:02:28]} 15... g5
{[%clk 0:00:27]} 16. c5 {[%clk 0:02:19.7]} 16... axb4 {[%clk 0:00:27.9]} 17.
axb4 {[%clk 0:02:18.8]} 17... Rxa1 {[%clk 0:00:27.8]} 18. Qxa1 {[%clk
0:02:18.6]} 18... bxc5 {[%clk 0:00:27.9]} 19. bxc5 {[%clk 0:02:17.7]} 19... Bc8
{[%clk 0:00:28.8]} 20. Qa3 {[%clk 0:02:07.6]} 20... Rf6 {[%clk 0:00:27.5]} 21.
cxd6 {[%clk 0:01:54.2]} 21... cxd6 {[%clk 0:00:27.1]} 22. Nb5 {[%clk 0:01:49.6]}
22... Bf8 {[%clk 0:00:26.6]} 23. Rc1 {[%clk 0:01:47.9]} 23... Rh6 {[%clk
0:00:16.7]} 24. Qa8 {[%clk 0:01:36.9]} 24... Nb6 {[%clk 0:00:13.6]} 25. Qb8
{[%clk 0:01:34.2]} 25... Qe8 {[%clk 0:00:08.4]} 26. Bxb6 {[%clk 0:01:08.5]}
26... Ng3 {[%clk 0:00:05.3]} 27. Rxc8 {[%clk 0:00:51.3]} 27... Nxe2+ {[%clk
0:00:04]} 28. Kf2 {[%clk 0:00:48.4]} 28... Qe7 {[%clk 0:00:02.7]} 29. Kxe2
{[%clk 0:00:35.3]} 29... Rxh2 {[%clk 0:00:02.7]} 30. Ne1 {[%clk 0:00:26]} 30...
g4 {[%clk 0:00:03]} 31. Qc7 {[%clk 0:00:21.2]} 31... Qxc7 {[%clk 0:00:02.7]} 32.
Nxc7 {[%clk 0:00:19.1]} 32... Kf7 {[%clk 0:00:02.3]} 33. Ne6 {[%clk 0:00:17.5]}
33... Be7 {[%clk 0:00:02.9]} 34. Rc7 {[%clk 0:00:15.8]} 34... Kf6 {[%clk
0:00:03.1]} 35. Ba5 {[%clk 0:00:14]} 35... h5 {[%clk 0:00:02.9]} 36. Bb4 {[%clk
0:00:13.1]} 36... h4 {[%clk 0:00:02.5]} 37. Kf2 {[%clk 0:00:10.9]} 37... h3
{[%clk 0:00:02.3]} 38. Kg1 {[%clk 0:00:10.7]} 38... g3 {[%clk 0:00:02.6]} 39.
Ba5 {[%clk 0:00:08]} 39... hxg2 {[%clk 0:00:03]} 40. Nxg2 {[%clk 0:00:06.7]}
40... Rh8 {[%clk 0:00:03.6]} 41. Rc8 {[%clk 0:00:05.4]} 41... Rxc8 {[%clk
0:00:03.7]} 42. Be1 {[%clk 0:00:05]} 42... Rc1 {[%clk 0:00:03.6]} 43. Nexf4
{[%clk 0:00:05.3]} 43... exf4 {[%clk 0:00:03.8]} 44. Nxf4 {[%clk 0:00:04.4]}
44... Rxe1+ {[%clk 0:00:04]} 45. Kg2 {[%clk 0:00:04.9]} 45... Ra1 {[%clk
0:00:04]} 46. Kxg3 {[%clk 0:00:05.4]} 46... Kf7 {[%clk 0:00:04.5]} 47. Kg4
{[%clk 0:00:05.6]} 47... Bf6 {[%clk 0:00:04.9]} 48. Kf5 {[%clk 0:00:06]} 48...
Be5 {[%clk 0:00:05.4]} 49. Ng6 {[%clk 0:00:06.5]} 49... Rf1 {[%clk 0:00:04.8]}
50. Nxe5+ {[%clk 0:00:07.1]} 50... dxe5 {[%clk 0:00:05]} 51. Kxe5 {[%clk
0:00:07.5]} 51... Rxf3 {[%clk 0:00:05.1]} 52. d6 {[%clk 0:00:08.1]} 52... Ke8
{[%clk 0:00:05.4]} 0-1

[Event "Late-Titled-Tuesday-Blitz-August-29-2023"]
[Site "Chess.com"]
[Date "2023.08.29"]
[Round "2"]
[White "hsd2016"]
[Black "Cambek64"]
[Result "0-1"]
[WhiteElo "2273"]
[BlackElo "2479"]
[TimeControl "180+1"]
[EndTime "14:18:53 PDT"]
[Termination "Cambek64 won on time"]

1. e4 {[%clk 0:03:00.9]} 1... c5 {[%clk 0:02:58.4]} 2. Nf3 {[%clk 0:02:59]} 2...
d6 {[%clk 0:02:58.1]} 3. d4 {[%clk 0:02:55.3]} 3... cxd4 {[%clk 0:02:58.9]} 4.
Nxd4 {[%clk 0:02:56.2]} 4... Nf6 {[%clk 0:02:56.1]} 5. Nc3 {[%clk 0:02:55.8]}
5... a6 {[%clk 0:02:56.4]} 6. h3 {[%clk 0:02:51.1]} 6... e5 {[%clk 0:02:56.9]}
7. Nf3 {[%clk 0:02:48.4]} 7... h5 {[%clk 0:02:57.1]} 8. Bg5 {[%clk 0:02:43]}
8... Be6 {[%clk 0:02:55.3]} 9. Nd5 {[%clk 0:02:36.9]} 9... Nbd7 {[%clk
0:02:54.5]} 10. c3 {[%clk 0:02:34.4]} 10... Be7 {[%clk 0:02:48.2]} 11. Nxe7
{[%clk 0:02:30.5]} 11... Qxe7 {[%clk 0:02:46.3]} 12. Qd2 {[%clk 0:02:24.9]}
12... O-O-O {[%clk 0:02:43.1]} 13. Rd1 {[%clk 0:02:23.4]} 13... Nc5 {[%clk
0:02:41.5]} 14. Bd3 {[%clk 0:02:23.1]} 14... Qc7 {[%clk 0:02:37.7]} 15. Qe2
{[%clk 0:01:56.1]} 15... Nxd3+ {[%clk 0:02:30.8]} 16. Qxd3 {[%clk 0:01:57]}
16... Bxa2 {[%clk 0:02:30.1]} 17. Nd2 {[%clk 0:01:48.1]} 17... d5 {[%clk
0:02:25.4]} 18. exd5 {[%clk 0:01:24.4]} 18... Bxd5 {[%clk 0:02:20.1]} 19. Bxf6
{[%clk 0:01:20.7]} 19... gxf6 {[%clk 0:02:19.1]} 20. Qf5+ {[%clk 0:01:20.8]}
20... Kb8 {[%clk 0:02:18.8]} 21. O-O {[%clk 0:01:18.3]} 21... Qc6 {[%clk
0:02:08.8]} 22. f3 {[%clk 0:01:15.5]} 22... Rdg8 {[%clk 0:02:01]} 23. Kh1 {[%clk
0:01:10.8]} 23... Rg5 {[%clk 0:02:00.4]} 24. Qd3 {[%clk 0:01:05]} 24... Rhg8
{[%clk 0:01:59.8]} 25. Rf2 {[%clk 0:01:05.5]} 25... f5 {[%clk 0:01:51.2]} 26.
Qe3 {[%clk 0:00:59.6]} 26... f6 {[%clk 0:01:37.2]} 27. Ra1 {[%clk 0:00:45.9]}
27... h4 {[%clk 0:01:32.1]} 28. b3 {[%clk 0:00:25.5]} 28... f4 {[%clk
0:01:30.1]} 29. Qd3 {[%clk 0:00:24.7]} 29... Be6 {[%clk 0:01:15.2]} 30. c4
{[%clk 0:00:24.2]} 30... Bf5 {[%clk 0:01:11.4]} 31. Ne4 {[%clk 0:00:15.1]} 31...
Bxe4 {[%clk 0:01:10.7]} 32. Qxe4 {[%clk 0:00:15.2]} 32... Qxe4 {[%clk
0:01:09.8]} 33. fxe4 {[%clk 0:00:15.8]} 33... Rg3 {[%clk 0:01:09.7]} 34. Rb1
{[%clk 0:00:14.2]} 34... Rd8 {[%clk 0:01:08.5]} 35. Rf3 {[%clk 0:00:11.9]} 35...
Rd4 {[%clk 0:01:02.2]} 36. Re1 {[%clk 0:00:12.2]} 36... b6 {[%clk 0:00:55.8]}
37. Rxg3 {[%clk 0:00:12.4]} 37... hxg3 {[%clk 0:00:54.2]} 38. h4 {[%clk
0:00:12.7]} 38... Rd7 {[%clk 0:00:52.8]} 39. Kg1 {[%clk 0:00:11.8]} 39... Kc7
{[%clk 0:00:49.3]} 40. Ra1 {[%clk 0:00:10.7]} 40... a5 {[%clk 0:00:45]} 41. Kf1
{[%clk 0:00:10.6]} 41... Rh7 {[%clk 0:00:43.1]} 42. Ke2 {[%clk 0:00:10.9]} 42...
Rxh4 {[%clk 0:00:43.6]} 43. Rd1 {[%clk 0:00:11]} 43... Rh8 {[%clk 0:00:38.2]}
44. Ra1 {[%clk 0:00:04.3]} 44... Kc6 {[%clk 0:00:37.8]} 45. Rd1 {[%clk
0:00:03.4]} 45... Ra8 {[%clk 0:00:25.3]} 46. Ra1 {[%clk 0:00:03.3]} 46... Rd8
{[%clk 0:00:24.6]} 47. Rh1 {[%clk 0:00:03.3]} 47... Kc5 {[%clk 0:00:23.9]} 48.
Rh6 {[%clk 0:00:03.3]} 48... Rd6 {[%clk 0:00:23.7]} 49. Rh1 {[%clk 0:00:01.6]}
49... Kb4 {[%clk 0:00:23.9]} 50. Rb1 {[%clk 0:00:02.5]} 50... Rd4 {[%clk
0:00:22.7]} 51. Kf3 {[%clk 0:00:01.6]} 51... Rd2 {[%clk 0:00:22.7]} 0-1

[Event "Late-Titled-Tuesday-Blitz-August-29-2023"]
[Site "Chess.com"]
[Date "2023.08.29"]
[Round "2"]
[White "lupta_robin"]
[Black "OparinGrigoriy"]
[Result "1/2-1/2"]
[WhiteElo "2636"]
[BlackElo "2968"]
[TimeControl "180+1"]
[EndTime "14:18:59 PDT"]
[Termination "Game drawn - insufficient material"]

1. b3 {[%clk 0:03:00.9]} 1... e5 {[%clk 0:02:59.5]} 2. Bb2 {[%clk 0:03:00.5]}
2... Nc6 {[%clk 0:03:00.3]} 3. e3 {[%clk 0:03:00.2]} 3... d5 {[%clk 0:02:44.6]}
4. Bb5 {[%clk 0:02:57.8]} 4... Bd6 {[%clk 0:02:44.5]} 5. f4 {[%clk 0:02:55.5]}
5... Qe7 {[%clk 0:02:28.8]} 6. Nf3 {[%clk 0:02:48]} 6... e4 {[%clk 0:02:27.9]}
7. Bxg7 {[%clk 0:02:35]} 7... exf3 {[%clk 0:02:28]} 8. Qxf3 {[%clk 0:02:34.5]}
8... f6 {[%clk 0:02:20.1]} 9. Qh5+ {[%clk 0:02:24.9]} 9... Qf7 {[%clk
0:02:18.4]} 10. Qxf7+ {[%clk 0:02:25.4]} 10... Kxf7 {[%clk 0:02:19.3]} 11. Bxh8
{[%clk 0:02:25.7]} 11... Bf5 {[%clk 0:02:16.4]} 12. Nc3 {[%clk 0:02:06.4]} 12...
Nb4 {[%clk 0:02:05.1]} 13. O-O {[%clk 0:01:44.2]} 13... Ne7 {[%clk 0:02:02.7]}
14. Bxf6 {[%clk 0:01:42.5]} 14... Kxf6 {[%clk 0:02:03.6]} 15. Be2 {[%clk
0:01:16.9]} 15... d4 {[%clk 0:01:55.7]} 16. Nb5 {[%clk 0:01:06.8]} 16... dxe3
{[%clk 0:01:54]} 17. Nxd6 {[%clk 0:00:59.7]} 17... cxd6 {[%clk 0:01:53.6]} 18.
dxe3 {[%clk 0:01:00.1]} 18... Nxc2 {[%clk 0:01:52.5]} 19. Rac1 {[%clk
0:00:59.9]} 19... Nxe3 {[%clk 0:01:52.2]} 20. Rfe1 {[%clk 0:00:49.1]} 20... d5
{[%clk 0:01:49.2]} 21. Bf3 {[%clk 0:00:45.3]} 21... d4 {[%clk 0:01:49.3]} 22.
Bxb7 {[%clk 0:00:45.9]} 22... Rd8 {[%clk 0:01:46.8]} 23. Bf3 {[%clk 0:00:46.2]}
23... N7d5 {[%clk 0:01:41.7]} 24. Bxd5 {[%clk 0:00:44.4]} 24... Rxd5 {[%clk
0:01:40.8]} 25. h3 {[%clk 0:00:40.5]} 25... h5 {[%clk 0:01:38.5]} 26. Kf2 {[%clk
0:00:39.9]} 26... h4 {[%clk 0:01:34.3]} 27. Rc6+ {[%clk 0:00:37.5]} 27... Be6
{[%clk 0:01:29.4]} 28. Ra6 {[%clk 0:00:27]} 28... Rd7 {[%clk 0:01:29.4]} 29.
Rxe3 {[%clk 0:00:20.8]} 29... dxe3+ {[%clk 0:01:29.3]} 30. Kxe3 {[%clk
0:00:21.7]} 30... Kf7 {[%clk 0:00:48.7]} 31. b4 {[%clk 0:00:21.3]} 31... Rc7
{[%clk 0:00:33.6]} 32. a4 {[%clk 0:00:19]} 32... Bd5 {[%clk 0:00:30.2]} 33. Rh6
{[%clk 0:00:17]} 33... Rc4 {[%clk 0:00:27.2]} 34. Rxh4 {[%clk 0:00:16.5]} 34...
Kg7 {[%clk 0:00:25.3]} 35. Rh5 {[%clk 0:00:15.4]} 35... Bc6 {[%clk 0:00:13.9]}
36. b5 {[%clk 0:00:15.5]} 36... Bb7 {[%clk 0:00:12.3]} 37. a5 {[%clk 0:00:14.5]}
37... Kf6 {[%clk 0:00:12.4]} 38. Rh7 {[%clk 0:00:10.2]} 38... Bxg2 {[%clk
0:00:12.1]} 39. Rxa7 {[%clk 0:00:10.4]} 39... Re4+ {[%clk 0:00:11.9]} 40. Kd3
{[%clk 0:00:09.2]} 40... Rxf4 {[%clk 0:00:11.9]} 41. b6 {[%clk 0:00:06.9]} 41...
Rb4 {[%clk 0:00:11.8]} 42. Rc7 {[%clk 0:00:06.6]} 42... Ke6 {[%clk 0:00:08.8]}
43. Kc3 {[%clk 0:00:06.5]} 43... Rb1 {[%clk 0:00:08.6]} 44. h4 {[%clk
0:00:05.1]} 44... Kd6 {[%clk 0:00:08.4]} 45. h5 {[%clk 0:00:05.1]} 45... Be4
{[%clk 0:00:04.2]} 46. h6 {[%clk 0:00:05.1]} 46... Rh1 {[%clk 0:00:03.9]} 47.
Kd4 {[%clk 0:00:05.1]} 47... Bc6 {[%clk 0:00:03.3]} 48. a6 {[%clk 0:00:04.6]}
48... Rxh6 {[%clk 0:00:03.7]} 49. a7 {[%clk 0:00:05]} 49... Rh8 {[%clk
0:00:04.3]} 50. Kc4 {[%clk 0:00:05.2]} 50... Rh4+ {[%clk 0:00:02.7]} 51. Kc3
{[%clk 0:00:05.3]} 51... Ra4 {[%clk 0:00:02.4]} 52. Kb3 {[%clk 0:00:05.5]} 52...
Ra1 {[%clk 0:00:02.6]} 53. Rc8 {[%clk 0:00:05.2]} 53... Ra6 {[%clk 0:00:02.6]}
54. Rb8 {[%clk 0:00:04.9]} 54... Kc5 {[%clk 0:00:02.3]} 55. Kc3 {[%clk
0:00:04.2]} 55... Kb5 {[%clk 0:00:02.1]} 56. Kd4 {[%clk 0:00:04.3]} 56... Rxb6
{[%clk 0:00:02.1]} 57. Rxb6+ {[%clk 0:00:04.1]} 57... Kxb6 {[%clk 0:00:03]} 58.
a8=Q {[%clk 0:00:04.7]} 58... Bxa8 {[%clk 0:00:03.9]} 1/2-1/2